[Event "Kragero Resort A 2020"]
[Site "Kragero"]
[Date "2020.02.22"]
[Round "7.16"]
[White "Abdrlauf, Elham"]
[Black "Ranaldi, Lucas"]
[Result "0-1"]
[ECO "B19"]
[WhiteElo "2381"]
[BlackElo "2302"]
[Annotator "ChessBase"]
[PlyCount "194"]
[EventDate "2020.02.19"]
[EventType "swiss"]
[EventCountry "NOR"]
[SourceTitle "playchess.com"]
[Source "ChessBase"]
[SourceQuality "1"]
[TimeControl "5400+30"]

1. e4 {[%emt 0:00:00]} c6 {[%emt 0:00:03]} 2. d4 {[%emt 0:00:00]} d5 {[%emt 0:00:35]} 3. Nc3 {[%emt 0:00:00]} dxe4 {[%emt 0:00:06]} 4. Nxe4 {[%emt 0:00:00]} Bf5 {[%emt 0:00:11]} 5. Ng3 {[%emt 0:00:00]} Bg6 {[%emt 0:00:08]} 6. h4 {[%emt 0:00:00]} h6 {[%emt 0:00:07]} 7. Nf3 {[%emt 0:00:00]} Nd7 {[%emt 0:00:06]} 8. h5 {[%emt 0:00:00]} Bh7 {[%emt 0:00:07]} 9. Bd3 {[%emt 0:00:02]} Bxd3 {[%emt 0:00:08]} 10. Qxd3 {[%emt 0:00:03]} e6 {[%emt 0:00:08]} 11. Bd2 {[%emt 0:00:07]} Ngf6 {[%emt 0:00:09]} 12. O-O-O {[%emt 0:00:06]} Be7 {[%emt 0:00:30]} 13. Qe2 {[%emt 0:00:05]} Qb6 {[%emt 0:14:35]} 14. Ne5 {[%emt 0:00:05]} Rd8 {[%emt 0:02:46]} 15. Rhe1 {[%emt 0:03:27]} O-O {[%emt 0:05:00]} 16. Ng6 {[%emt 0:00:10]} Rfe8 {[%emt 0:09:45]} 17. Nxe7+ {[%emt 0:08:58]} Rxe7 {[%emt 0:00:02]} 18. Nf5 {[%emt 0:00:14]} Ree8 {[%emt 0:00:16]} 19. Nd6 {[%emt 0:06:49]} Re7 {[%emt 0:01:05]} 20. Qf3 {[%emt 0:09:02]} Qc7 {[%emt 0:38:57]} 21. Nf5 {[%emt 0:07:40]} Ree8 {[%emt 0:00:06]} 22. Nxh6+ {[%emt 0:00:02]} gxh6 {[%emt 0:01:39]} 23. Bxh6 {[%emt 0:00:02]} Qd6 {[%emt 0:12:41]} 24. Re5 {[%emt 0:05:26]} Kh7 {[%emt 0:00:58]} 25. Bg5 {[%emt 0:00:04]} Qe7 {[%emt 0:07:58]} 26. Re4 {[%emt 0:00:19]} Rg8 {[%emt 0:00:16]} 27. Bh4 {[%emt 0:00:05]} Qf8 {[%emt 0:02:52]} 28. Rf4 {[%emt 0:03:02]} Qh6 {[%emt 0:00:05]} 29. Kb1 {[%emt 0:00:04]} Rg5 {[%emt 0:00:13]} 30. Bxg5 {[%emt 0:02:32]} Qxg5 {[%emt 0:00:01]} 31. g3 {[%emt 0:00:38]} Kg7 {[%emt 0:00:57]} 32. Qa3 {[%emt 0:01:10]} Qxh5 {[%emt 0:00:55]} 33. Re1 {[%emt 0:00:06]} a6 {[%emt 0:01:23]} 34. Qd6 {[%emt 0:00:46]} Qd5 {[%emt 0:01:18]} 35. Qc7 {[%emt 0:00:20]} Rh8 {[%emt 0:00:24]} 36. Rh4 {[%emt 0:01:49]} Rxh4 {[%emt 0:00:33]} 37. gxh4 {[%emt 0:00:04]} Qxd4 {[%emt 0:00:20]} 38. Rg1+ {[%emt 0:00:43]} Kf8 {[%emt 0:00:27]} 39. h5 {[%emt 0:00:19]} Ke7 {[%emt 0:00:39]} 40. Qh2 {[%emt 0:00:43]} Qe5 {[%emt 0:00:18]} 41. Qh4 {[%emt 0:00:20]} Qxh5 {[%emt 0:00:27]} 42. Qb4+ {[%emt 0:00:05]} Qc5 {[%emt 0:00:18]} 43. Qxb7 {[%emt 0:00:05]} Qxf2 {[%emt 0:00:50]} 44. Rd1 {[%emt 0:00:05]} Qe2 {[%emt 0:00:17]} 45. Rh1 {[%emt 0:00:31]} Qb5 {[%emt 0:00:23]} 46. Qc7 {[%emt 0:00:13]} Qd5 {[%emt 0:00:33]} 47. Re1 {[%emt 0:00:17]} Qd2 {[%emt 0:00:45]} 48. Rc1 {[%emt 0:00:35]} Qd6 {[%emt 0:00:23]} 49. Qa5 {[%emt 0:00:25]} c5 {[%emt 0:00:16]} 50. Qe1 {[%emt 0:00:53]} Nd5 {[%emt 0:00:42]} 51. Rd1 {[%emt 0:00:21]} c4 {[%emt 0:00:32]} 52. Rd4 {[%emt 0:01:40]} c3 {[%emt 0:00:28]} 53. bxc3 {[%emt 0:00:10]} Qc5 {[%emt 0:00:29]} 54. Qh4+ {[%emt 0:00:54]} N7f6 {[%emt 0:00:56]} 55. Rc4 {[%emt 0:00:05]} Qb6+ {[%emt 0:00:39]} 56. Kc1 {[%emt 0:00:16]} Qe3+ {[%emt 0:00:34]} 57. Kb2 {[%emt 0:00:12]} Qb6+ {[%emt 0:00:05]} 58. Kc1 {[%emt 0:00:08]} Qa5 {[%emt 0:00:27]} 59. Qd4 {[%emt 0:01:03]} Nd7 {[%emt 0:00:27]} 60. Kd2 {[%emt 0:00:36]} N7b6 {[%emt 0:00:48]} 61. Rc5 {[%emt 0:01:15]} Qa3 {[%emt 0:00:49]} 62. Rc6 {[%emt 0:01:12]} Qa5 {[%emt 0:00:21]} 63. Rc5 {[%emt 0:00:25]} Qa3 {[%emt 0:00:27]} 64. Rc6 {[%emt 0:00:06]} Qa5 {[%emt 0:00:41]} 65. Rc5 {[%emt 0:00:21]} Qa4 {[%emt 0:00:29]} 66. c4 {[%emt 0:03:42]} Qb4+ {[%emt 0:00:08]} 67. Kd3 {[%emt 0:00:28]} Nd7 {[%emt 0:00:47]} 68. Rc8 {[%emt 0:00:48]} Qa3+ {[%emt 0:00:34]} 69. Ke2 {[%emt 0:00:58]} Qc3 {[%emt 0:00:26]} 70. Qxc3 {[%emt 0:01:57]} Nxc3+ {[%emt 0:00:01]} 71. Kd3 {[%emt 0:00:05]} Na4 {[%emt 0:00:17]} 72. Kd4 {[%emt 0:00:43]} Kd6 {[%emt 0:00:02]} 73. Rh8 {[%emt 0:01:11]} Nac5 {[%emt 0:00:07]} 74. Rh6 {[%emt 0:00:54]} f6 {[%emt 0:00:08]} 75. Kc3 {[%emt 0:00:11]} f5 {[%emt 0:00:52]} 76. Kd4 {[%emt 0:00:08]} Ne5 {[%emt 0:00:35]} 77. Rh8 {[%emt 0:00:20]} Nf7 {[%emt 0:00:52]} 78. Rf8 {[%emt 0:00:28]} e5+ {[%emt 0:00:19]} 79. Kc3 {[%emt 0:00:02]} Ke7 {[%emt 0:00:49]} 80. Rc8 {[%emt 0:00:05]} Nd6 {[%emt 0:00:58]} 81. Rc7+ {[%emt 0:00:23]} Ke6 {[%emt 0:00:27]} 82. Kb4 {[%emt 0:00:06]} Nde4 {[%emt 0:00:17]} 83. Rc6+ {[%emt 0:00:30]} Kd7 {[%emt 0:00:19]} 84. Rh6 {[%emt 0:00:14]} f4 {[%emt 0:00:10]} 85. Rh5 {[%emt 0:00:20]} Ke6 {[%emt 0:00:23]} 86. Rh6+ {[%emt 0:00:05]} Kf5 {[%emt 0:00:13]} 87. Rh5+ {[%emt 0:00:09]} Kf6 {[%emt 0:00:21]} 88. Rh8 {[%emt 0:00:13]} Kg6 {[%emt 0:00:59]} 89. Re8 {[%emt 0:00:28]} Kf5 {[%emt 0:00:06]} 90. Rf8+ {[%emt 0:00:07]} Kg4 {[%emt 0:00:33]} 91. Rg8+ {[%emt 0:00:02]} Kf5 {[%emt 0:00:36]} 92. Rf8+ {[%emt 0:00:07]} Ke6 {[%emt 0:00:07]} 93. a4 {[%emt 0:00:44]} Nd7 {[%emt 0:01:38]} 94. Ra8 {[%emt 0:00:17]} Nec5 {[%emt 0:00:21]} 95. Rh8 {[%emt 0:00:24]} f3 {[%emt 0:00:44]} 96. Rh3 {[%emt 0:00:09]} e4 {[%emt 0:00:15]} 97. Kc3 {[%emt 0:00:06]} f2 {[%emt 0:00:45]} 0-1

[Event "Kragero Resort A 2020"]
[Site "Kragero"]
[Date "2020.02.22"]
[Round "7.17"]
[White "Khachatryan, Vahagn"]
[Black "Stanford, Maxim Barth"]
[Result "0-1"]
[ECO "A48"]
[WhiteElo "2276"]
[BlackElo "2339"]
[Annotator "ChessBase"]
[PlyCount "74"]
[EventDate "2020.02.19"]
[EventType "swiss"]
[EventCountry "NOR"]
[SourceTitle "playchess.com"]
[Source "ChessBase"]
[SourceQuality "1"]
[TimeControl "5400+30"]

1. d4 {[%emt 0:00:00]} Nf6 {[%emt 0:00:52]} 2. Nf3 {[%emt 0:00:08]} c5 {[%emt 0:00:14]} 3. e3 {[%emt 0:00:51]} g6 {[%emt 0:00:06]} 4. Be2 {[%emt 0:06:45]} Bg7 {[%emt 0:00:33]} 5. O-O {[%emt 0:00:05]} O-O {[%emt 0:00:35]} 6. b3 {[%emt 0:00:26]} cxd4 {[%emt 0:01:23]} 7. Nxd4 {[%emt 0:04:39]} e5 {[%emt 0:02:38]} 8. Nf3 {[%emt 0:00:11]} Nc6 {[%emt 0:00:42]} 9. Bb2 {[%emt 0:00:39]} d6 {[%emt 0:01:22]} 10. c4 {[%emt 0:00:46]} Qe7 {[%emt 0:02:21]} 11. Nc3 {[%emt 0:01:17]} Be6 {[%emt 0:01:57]} 12. Ba3 {[%emt 0:15:37]} Rfd8 {[%emt 0:01:16]} 13. Nd2 {[%emt 0:06:19]} Qc7 {[%emt 0:06:23]} 14. Nde4 {[%emt 0:20:22]} Nxe4 {[%emt 0:01:15]} 15. Nxe4 {[%emt 0:00:02]} d5 {[%emt 0:01:34]} 16. Ng5 {[%emt 0:00:21]} Bf5 {[%emt 0:02:36]} 17. cxd5 {[%emt 0:02:43]} e4 {[%emt 0:01:53]} 18. dxc6 {[%emt 0:16:18]} Rxd1 {[%emt 0:00:18]} 19. Raxd1 {[%emt 0:00:01]} h6 {[%emt 0:01:28]} 20. cxb7 {[%emt 0:00:44]} Qxb7 {[%emt 0:00:46]} 21. Nh3 {[%emt 0:04:26]} g5 {[%emt 0:05:55]} 22. g4 {[%emt 0:00:36]} Be6 {[%emt 0:00:45]} 23. f4 {[%emt 0:00:08]} Qb6 {[%emt 0:01:51]} 24. Kf2 {[%emt 0:01:24]} Qa5 {[%emt 0:01:26]} 25. Bd6 {[%emt 0:02:40]} Qxa2 {[%emt 0:01:08]} 26. fxg5 {[%emt 0:01:15]} Bxg4 {[%emt 0:01:00]} 27. Nf4 {[%emt 0:00:05]} hxg5 {[%emt 0:00:59]} 28. Rg1 {[%emt 0:02:04]} gxf4 {[%emt 0:00:38]} 29. Rxg4 {[%emt 0:00:05]} f3 {[%emt 0:00:06]} 30. Re1 {[%emt 0:00:14]} Re8 {[%emt 0:00:08]} 31. Bc5 {[%emt 0:03:00]} Re6 {[%emt 0:01:20]} 32. Bd4 {[%emt 0:04:30]} Rg6 {[%emt 0:00:46]} 33. Rxe4 {[%emt 0:00:38]} fxe2 {[%emt 0:00:38]} 34. Bxg7 {[%emt 0:01:21]} Kxg7 {[%emt 0:00:28]} 35. Rxe2 {[%emt 0:00:12]} Rf6+ {[%emt 0:00:18]} 36. Rf4 {[%emt 0:01:43]} Rxf4+ {[%emt 0:00:06]} 37. exf4 {[%emt 0:00:03]} Qxb3 {[%emt 0:00:08]} 0-1

[Event "Kragero Resort A 2020"]
[Site "Kragero"]
[Date "2020.02.22"]
[Round "7.18"]
[White "Alinasab, Mobina"]
[Black "Vitenberg, Noam Aviv"]
[Result "1-0"]
[ECO "B11"]
[WhiteElo "2333"]
[BlackElo "2276"]
[Annotator "ChessBase"]
[PlyCount "77"]
[EventDate "2020.02.19"]
[EventType "swiss"]
[EventCountry "NOR"]
[SourceTitle "playchess.com"]
[Source "ChessBase"]
[SourceQuality "1"]
[TimeControl "5400+30"]

1. e4 {[%emt 0:02:14]} c6 {[%emt 0:00:00]} 2. Nc3 {[%emt 0:00:05]} d5 {[%emt 0:00:40]} 3. Nf3 {[%emt 0:00:06]} dxe4 {[%emt 0:02:26]} 4. Nxe4 {[%emt 0:00:09]} Nf6 {[%emt 0:00:13]} 5. Qe2 {[%emt 0:00:22]} Nxe4 {[%emt 0:01:03]} 6. Qxe4 {[%emt 0:00:06]} Qa5 {[%emt 0:00:08]} 7. b4 {[%emt 0:01:11]} Qf5 {[%emt 0:03:05]} 8. Qe3 {[%emt 0:00:06]} e6 {[%emt 0:09:16]} 9. a3 {[%emt 0:07:21]} Be7 {[%emt 0:10:12]} 10. c4 {[%emt 0:05:00]} Nd7 {[%emt 0:04:15]} 11. Bb2 {[%emt 0:01:57]} O-O {[%emt 0:05:08]} 12. Bd3 {[%emt 0:18:45]} Qh5 {[%emt 0:04:22]} 13. g4 {[%emt 0:03:49]} Qh3 {[%emt 0:25:51]} 14. Rg1 {[%emt 0:07:09]} e5 {[%emt 0:06:20]} 15. c5 {[%emt 0:23:58]} b6 {[%emt 0:05:00]} 16. cxb6 {[%emt 0:10:28]} axb6 {[%emt 0:01:11]} 17. Be4 {[%emt 0:00:58]} Nf6 {[%emt 0:07:09]} 18. Rg3 {[%emt 0:08:49]} Nxg4 {[%emt 0:00:28]} 19. Rxh3 {[%emt 0:00:22]} Nxe3 {[%emt 0:00:31]} 20. Bxh7+ {[%emt 0:00:04]} Kh8 {[%emt 0:00:05]} 21. Bf5+ {[%emt 0:00:06]} Kg8 {[%emt 0:00:39]} 22. Bxc8 {[%emt 0:00:20]} Nc4 {[%emt 0:06:34]} 23. Bf5 {[%emt 0:01:01]} g6 {[%emt 0:01:56]} 24. Bc3 {[%emt 0:04:56]} gxf5 {[%emt 0:00:21]} 25. Rg3+ {[%emt 0:01:00]} Kh7 {[%emt 0:00:36]} 26. Nxe5 {[%emt 0:01:14]} Nxe5 {[%emt 0:01:37]} 27. Bxe5 {[%emt 0:00:02]} Rfe8 {[%emt 0:01:25]} 28. Rh3+ {[%emt 0:01:22]} Kg6 {[%emt 0:00:22]} 29. Kd1 {[%emt 0:00:18]} Bg5 {[%emt 0:01:31]} 30. Bc3 {[%emt 0:00:51]} Rad8 {[%emt 0:02:03]} 31. Kc2 {[%emt 0:00:43]} Re2 {[%emt 0:00:24]} 32. f4 {[%emt 0:00:17]} Bxf4 {[%emt 0:00:35]} 33. Rg1+ {[%emt 0:00:02]} Bg5 {[%emt 0:00:08]} 34. Rhg3 {[%emt 0:00:27]} f6 {[%emt 0:00:54]} 35. h4 {[%emt 0:00:11]} f4 {[%emt 0:00:16]} 36. Rg4 {[%emt 0:00:54]} Rd5 {[%emt 0:00:43]} 37. Rxf4 {[%emt 0:01:13]} Re1 {[%emt 0:00:15]} 38. Rxf6+ {[%emt 0:00:22]} Kh7 {[%emt 0:00:13]} 39. Rxg5 {[%emt 0:00:12]} 1-0

[Event "Kragero Resort A 2020"]
[Site "Kragero"]
[Date "2020.02.22"]
[Round "7.20"]
[White "Fossan, Aleksander"]
[Black "Sriram, Jha"]
[Result "1/2-1/2"]
[ECO "B06"]
[WhiteElo "2193"]
[BlackElo "2383"]
[Annotator "ChessBase"]
[PlyCount "43"]
[EventDate "2020.02.19"]
[EventType "swiss"]
[EventCountry "NOR"]
[SourceTitle "playchess.com"]
[Source "ChessBase"]
[SourceQuality "1"]
[TimeControl "5400+30"]

1. e4 {[%emt 0:06:20]} c5 {[%emt 0:00:00]} 2. c3 {[%emt 0:00:09]} d5 {[%emt 0:01:12]} 3. exd5 {[%emt 0:00:11]} Qxd5 {[%emt 0:00:15]} 4. d4 {[%emt 0:00:08]} g6 {[%emt 0:01:06]} 5. Nf3 {[%emt 0:00:31]} Bg7 {[%emt 0:00:50]} 6. Nbd2 {[%emt 0:01:19]} cxd4 {[%emt 0:11:52]} 7. Bc4 {[%emt 0:00:09]} Qd8 {[%emt 0:01:03]} 8. Nxd4 {[%emt 0:00:14]} Nf6 {[%emt 0:04:55]} 9. O-O {[%emt 0:00:27]} O-O {[%emt 0:00:07]} 10. Re1 {[%emt 0:00:12]} Nbd7 {[%emt 0:07:16]} 11. N2f3 {[%emt 0:06:32]} Qc7 {[%emt 0:03:39]} 12. Qe2 {[%emt 0:08:08]} e5 {[%emt 0:15:18]} 13. Nb5 {[%emt 0:04:29]} Qc6 {[%emt 0:00:36]} 14. Be3 {[%emt 0:05:21]} a6 {[%emt 0:07:27]} 15. Na7 {[%emt 0:03:32]} Qc7 {[%emt 0:08:47]} 16. Nxc8 {[%emt 0:00:58]} Raxc8 {[%emt 0:00:02]} 17. Bb3 {[%emt 0:00:41]} e4 {[%emt 0:08:31]} 18. Nd2 {[%emt 0:04:56]} Rfe8 {[%emt 0:10:12]} 19. Qc4 {[%emt 0:04:21]} Ne5 {[%emt 0:07:15]} 20. Qxc7 {[%emt 0:01:13]} Rxc7 {[%emt 0:00:01]} 21. Bf4 {[%emt 0:02:13]} Rce7 {[%emt 0:01:05]} 22. Nxe4 {[%emt 0:03:30]} 1/2-1/2

[Event "Kragero Resort A 2020"]
[Site "Kragero"]
[Date "2020.02.22"]
[Round "7.21"]
[White "Birkisson, Bardur Orn"]
[Black "Vestby-Ellingsen, Mads"]
[Result "0-1"]
[ECO "A48"]
[WhiteElo "2186"]
[BlackElo "2357"]
[Annotator "ChessBase"]
[PlyCount "116"]
[EventDate "2020.02.19"]
[EventType "swiss"]
[EventCountry "NOR"]
[SourceTitle "playchess.com"]
[Source "ChessBase"]
[SourceQuality "1"]
[TimeControl "5400+30"]

1. d4 {[%emt 0:06:29]} Nf6 {[%emt 0:00:00]} 2. Nf3 {[%emt 0:00:10]} g6 {[%emt 0:00:00]} 3. Bg5 {[%emt 0:00:38]} Bg7 {[%emt 0:00:17]} 4. Nbd2 {[%emt 0:00:27]} O-O {[%emt 0:00:14]} 5. c3 {[%emt 0:00:11]} d6 {[%emt 0:00:11]} 6. e4 {[%emt 0:00:09]} c5 {[%emt 0:00:11]} 7. dxc5 {[%emt 0:00:23]} dxc5 {[%emt 0:00:08]} 8. Bc4 {[%emt 0:00:08]} Nc6 {[%emt 0:00:10]} 9. O-O {[%emt 0:00:11]} Qc7 {[%emt 0:00:10]} 10. Re1 {[%emt 0:00:09]} h6 {[%emt 0:00:15]} 11. Bxf6 {[%emt 0:00:09]} exf6 {[%emt 0:00:46]} 12. Nf1 {[%emt 0:00:13]} Re8 {[%emt 0:07:45]} 13. h3 {[%emt 0:04:07]} Bd7 {[%emt 0:11:43]} 14. Ne3 {[%emt 0:10:30]} Rad8 {[%emt 0:09:49]} 15. Qc2 {[%emt 0:07:22]} Na5 {[%emt 0:13:44]} 16. Bd5 {[%emt 0:07:52]} b5 {[%emt 0:02:22]} 17. Rad1 {[%emt 0:07:58]} Nb7 {[%emt 0:01:15]} 18. Nh4 {[%emt 0:28:23]} Be6 {[%emt 0:07:43]} 19. a4 {[%emt 0:01:35]} a6 {[%emt 0:04:12]} 20. axb5 {[%emt 0:04:37]} axb5 {[%emt 0:02:50]} 21. Qe2 {[%emt 0:01:50]} Nd6 {[%emt 0:02:14]} 22. Qf3 {[%emt 0:00:58]} Qc8 {[%emt 0:07:13]} 23. Ra1 {[%emt 0:02:39]} Qd7 {[%emt 0:03:09]} 24. Red1 {[%emt 0:04:52]} Bxd5 {[%emt 0:12:43]} 25. Rxd5 {[%emt 0:06:01]} Qc8 {[%emt 0:03:57]} 26. Rad1 {[%emt 0:01:35]} Nb7 {[%emt 0:01:09]} 27. Rxd8 {[%emt 0:00:53]} Rxd8 {[%emt 0:01:24]} 28. Nd5 {[%emt 0:00:15]} Qe6 {[%emt 0:02:57]} 29. Qg4 {[%emt 0:00:45]} Kh7 {[%emt 0:02:17]} 30. Qf3 {[%emt 0:02:50]} Na5 {[%emt 0:01:57]} 31. Qe3 {[%emt 0:00:33]} Nb3 {[%emt 0:00:32]} 32. f4 {[%emt 0:00:33]} Qa6 {[%emt 0:01:12]} 33. f5 {[%emt 0:00:22]} g5 {[%emt 0:00:09]} 34. Nf3 {[%emt 0:00:08]} Qa4 {[%emt 0:01:21]} 35. Qe2 {[%emt 0:00:46]} Re8 {[%emt 0:00:50]} 36. Re1 {[%emt 0:00:19]} Qa7 {[%emt 0:00:39]} 37. Nh2 {[%emt 0:00:15]} c4+ {[%emt 0:00:12]} 38. Kh1 {[%emt 0:00:30]} Qd7 {[%emt 0:00:49]} 39. Rd1 {[%emt 0:00:56]} Qc6 {[%emt 0:00:27]} 40. Qg4 {[%emt 0:00:41]} Nc5 {[%emt 0:00:16]} 41. Rd4 {[%emt 0:00:27]} Nd3 {[%emt 0:00:45]} 42. Qh5 {[%emt 0:00:12]} Rxe4 {[%emt 0:00:31]} 43. Rxe4 {[%emt 0:00:26]} Nf2+ {[%emt 0:00:04]} 44. Kg1 {[%emt 0:00:18]} Nxe4 {[%emt 0:00:05]} 45. Ne3 {[%emt 0:00:48]} Qe8 {[%emt 0:00:53]} 46. Qd1 {[%emt 0:00:40]} Nxc3 {[%emt 0:00:19]} 47. Qd2 {[%emt 0:00:38]} Ne4 {[%emt 0:00:20]} 48. Qc2 {[%emt 0:00:10]} Nc5 {[%emt 0:00:24]} 49. Qd2 {[%emt 0:00:49]} Nd3 {[%emt 0:00:51]} 50. b3 {[%emt 0:00:23]} Qe4 {[%emt 0:00:13]} 51. bxc4 {[%emt 0:00:26]} bxc4 {[%emt 0:00:07]} 52. Nhf1 {[%emt 0:00:39]} Bf8 {[%emt 0:00:14]} 53. Kh1 {[%emt 0:00:31]} Bc5 {[%emt 0:00:21]} 54. Ng4 {[%emt 0:00:30]} Qxf5 {[%emt 0:00:46]} 55. Nfe3 {[%emt 0:00:32]} Bxe3 {[%emt 0:00:53]} 56. Nxe3 {[%emt 0:00:11]} Qe4 {[%emt 0:00:18]} 57. Ng4 {[%emt 0:00:55]} Kg7 {[%emt 0:00:15]} 58. Ne3 {[%emt 0:00:18]} c3 {[%emt 0:00:19]} 0-1

[Event "Kragero Resort A 2020"]
[Site "Kragero"]
[Date "2020.02.22"]
[Round "7.22"]
[White "Kjartansson, David"]
[Black "Sjoberg, Isak"]
[Result "1/2-1/2"]
[ECO "A45"]
[WhiteElo "2356"]
[BlackElo "2218"]
[Annotator "ChessBase"]
[PlyCount "64"]
[EventDate "2020.02.19"]
[EventType "swiss"]
[EventCountry "NOR"]
[SourceTitle "playchess.com"]
[Source "ChessBase"]
[SourceQuality "1"]
[TimeControl "5400+30"]

1. d4 {[%emt 0:00:00]} Nf6 {[%emt 0:00:00]} 2. Bf4 {[%emt 0:00:00]} g6 {[%emt 0:00:00]} 3. Nc3 {[%emt 0:00:00]} d5 {[%emt 0:00:00]} 4. e3 {[%emt 0:00:06]} Bg7 {[%emt 0:00:04]} 5. h4 {[%emt 0:00:20]} c5 {[%emt 0:00:05]} 6. Nf3 {[%emt 0:09:06]} O-O {[%emt 0:05:47]} 7. Ne5 {[%emt 0:01:23]} h5 {[%emt 0:07:07]} 8. Qd2 {[%emt 0:10:11]} Nc6 {[%emt 0:06:22]} 9. Nxc6 {[%emt 0:04:48]} bxc6 {[%emt 0:00:12]} 10. f3 {[%emt 0:03:52]} cxd4 {[%emt 0:05:27]} 11. exd4 {[%emt 0:00:08]} c5 {[%emt 0:00:27]} 12. dxc5 {[%emt 0:03:33]} e5 {[%emt 0:07:24]} 13. Bg5 {[%emt 0:06:22]} d4 {[%emt 0:01:41]} 14. Ne4 {[%emt 0:05:34]} Nxe4 {[%emt 0:01:22]} 15. fxe4 {[%emt 0:00:08]} Qc7 {[%emt 0:02:58]} 16. Bh6 {[%emt 0:08:29]} Qxc5 {[%emt 0:04:32]} 17. Bxg7 {[%emt 0:00:19]} Kxg7 {[%emt 0:00:06]} 18. Bd3 {[%emt 0:01:33]} f5 {[%emt 0:07:51]} 19. O-O-O {[%emt 0:03:05]} f4 {[%emt 0:01:03]} 20. Kb1 {[%emt 0:02:49]} Rb8 {[%emt 0:04:27]} 21. Rc1 {[%emt 0:00:27]} Be6 {[%emt 0:00:35]} 22. c4 {[%emt 0:03:07]} a5 {[%emt 0:05:04]} 23. Ka1 {[%emt 0:00:20]} Rb4 {[%emt 0:01:49]} 24. Rc2 {[%emt 0:00:28]} Rc8 {[%emt 0:01:08]} 25. Rhc1 {[%emt 0:00:16]} Bd7 {[%emt 0:01:30]} 26. Qe2 {[%emt 0:01:32]} Rcb8 {[%emt 0:01:48]} 27. Rd2 {[%emt 0:02:31]} Be6 {[%emt 0:06:14]} 28. Rdc2 {[%emt 0:01:35]} Ra4 {[%emt 0:01:17]} 29. Qd1 {[%emt 0:02:54]} Rab4 {[%emt 0:02:15]} 30. Qe2 {[%emt 0:01:18]} R4b7 {[%emt 0:00:04]} 31. Qf2 {[%emt 0:00:36]} Rf8 {[%emt 0:01:47]} 32. Rf1 {[%emt 0:01:31]} Rbf7 {[%emt 0:04:18]} 1/2-1/2

[Event "Kragero Resort A 2020"]
[Site "Kragero"]
[Date "2020.02.22"]
[Round "7.23"]
[White "Kizatbay, Abyl"]
[Black "Thorgeirsson, Jon Kristinn"]
[Result "1/2-1/2"]
[ECO "C65"]
[WhiteElo "2142"]
[BlackElo "2269"]
[Annotator "ChessBase"]
[PlyCount "76"]
[EventDate "2020.02.19"]
[EventType "swiss"]
[EventCountry "NOR"]
[SourceTitle "playchess.com"]
[Source "ChessBase"]
[SourceQuality "1"]
[TimeControl "5400+30"]

1. e4 {[%emt 0:00:00]} e5 {[%emt 0:06:11]} 2. Nf3 {[%emt 0:00:02]} Nc6 {[%emt 0:00:29]} 3. Bb5 {[%emt 0:00:07]} Nf6 {[%emt 0:00:06]} 4. d3 {[%emt 0:00:22]} Ne7 {[%emt 0:00:05]} 5. d4 {[%emt 0:01:27]} c6 {[%emt 0:01:41]} 6. dxe5 {[%emt 0:00:24]} Nxe4 {[%emt 0:00:07]} 7. Bd3 {[%emt 0:00:07]} Qa5+ {[%emt 0:03:05]} 8. c3 {[%emt 0:05:04]} d5 {[%emt 0:04:58]} 9. exd6 {[%emt 0:03:45]} Nxd6 {[%emt 0:00:45]} 10. Bf4 {[%emt 0:09:53]} Nd5 {[%emt 0:01:28]} 11. Bd2 {[%emt 0:01:45]} Qb6 {[%emt 0:03:11]} 12. c4 {[%emt 0:04:20]} Nb4 {[%emt 0:00:19]} 13. Bxb4 {[%emt 0:01:23]} Qxb4+ {[%emt 0:01:03]} 14. Nbd2 {[%emt 0:00:29]} Be6 {[%emt 0:03:21]} 15. Qc2 {[%emt 0:05:08]} O-O-O {[%emt 0:00:53]} 16. O-O {[%emt 0:01:17]} Qc5 {[%emt 0:08:55]} 17. Rfe1 {[%emt 0:05:22]} Qh5 {[%emt 0:06:46]} 18. Re5 {[%emt 0:03:19]} g5 {[%emt 0:02:00]} 19. c5 {[%emt 0:16:54]} Ne8 {[%emt 0:05:09]} 20. Rxg5 {[%emt 0:00:55]} Qh6 {[%emt 0:00:13]} 21. b4 {[%emt 0:00:51]} Be7 {[%emt 0:01:58]} 22. Rg3 {[%emt 0:01:17]} Nc7 {[%emt 0:00:26]} 23. Bf5 {[%emt 0:08:07]} Qf6 {[%emt 0:03:09]} 24. Bxe6+ {[%emt 0:00:23]} Nxe6 {[%emt 0:00:07]} 25. Re1 {[%emt 0:02:03]} Rd5 {[%emt 0:05:27]} 26. Nc4 {[%emt 0:05:21]} h5 {[%emt 0:02:34]} 27. Nfe5 {[%emt 0:03:28]} h4 {[%emt 0:08:28]} 28. Rf3 {[%emt 0:01:44]} Nd4 {[%emt 0:00:07]} 29. Rxf6 {[%emt 0:04:48]} Nxc2 {[%emt 0:01:43]} 30. Rxf7 {[%emt 0:00:04]} Nxe1 {[%emt 0:12:42]} 31. Rxe7 {[%emt 0:00:01]} h3 {[%emt 0:00:21]} 32. gxh3 {[%emt 0:02:37]} Kb8 {[%emt 0:01:46]} 33. Kf1 {[%emt 0:04:50]} Nc2 {[%emt 0:02:44]} 34. Nd6 {[%emt 0:02:10]} Nxb4 {[%emt 0:01:19]} 35. Nef7 {[%emt 0:01:15]} Rh4 {[%emt 0:01:14]} 36. Re8+ {[%emt 0:00:06]} Kc7 {[%emt 0:00:05]} 37. Re7+ {[%emt 0:00:03]} Kb8 {[%emt 0:00:06]} 38. Re8+ {[%emt 0:07:17]} Kc7 {[%emt 0:00:11]} 1/2-1/2